bitfinex/quotes_BTCUSD_20250623
["timestamp","ask_amount","ask_price","bid_price","bid_amount"]
[1750640844973,0.40791046,100930.0,100920.0,0.00404598]
[1750640845188,1.01690053,100930.0,100920.0,0.01204598]
[1750640845407,1.01690053,100930.0,100920.0,0.008]
[1750640845408,1.01108283,100930.0,100920.0,0.008]
[1750640845633,0.0642,100910.0,100890.0,6e-05]
[1750640845853,0.00124,100900.0,100890.0,6e-05]
[1750640846097,0.34124,100900.0,100890.0,0.00019921]
[1750640846536,0.73934488,100900.0,100890.0,0.00019921]
[1750640846760,0.77044488,100900.0,100890.0,0.00019921]
[1750640846976,0.81980353,100900.0,100890.0,0.00419921]
[1750640847193,0.96743357,100900.0,100890.0,0.00419921]
[1750640848078,0.96743357,100900.0,100890.0,0.00019921]
[1750640848501,0.96843357,100900.0,100890.0,0.00519921]
[1750640848735,0.96843357,100900.0,100890.0,0.00019921]
[1750640848940,0.96843357,100900.0,100890.0,0.00119921]
[1750640849569,0.60342869,100900.0,100890.0,0.00119921]
[1750640849788,1.01715357,100900.0,100890.0,0.00119921]
[1750640850255,1.02706348,100900.0,100890.0,0.00119921]
[1750640850462,1.01715357,100900.0,100890.0,0.00119921]
[1750640851078,1.01615357,100900.0,100890.0,0.00119921]
[1750640851286,1.01615357,100900.0,100890.0,0.00019921]
[1750640851492,1.02707804,100900.0,100890.0,0.00119921]
[1750640851700,1.02707799,100900.0,100890.0,0.00119921]
[1750640851908,1.02015357,100900.0,100890.0,0.00119921]
[1750640852755,1.10128826,100900.0,100890.0,0.00119921]
[1750640853222,1.12110838,100900.0,100890.0,0.00119921]
[1750640853451,0.34124,100850.0,100840.0,0.0132203]
[1750640853686,0.34124,100850.0,100840.0,0.01368438]
[1750640854345,0.34,100850.0,100840.0,0.01368438]
[1750640854566,0.34224,100850.0,100840.0,0.01768438]
[1750640854786,0.34224,100850.0,100840.0,0.01768459]
[1750640854998,0.37185379,100850.0,100840.0,0.01768459]
[1750640855241,0.73685867,100850.0,100840.0,0.01768459]
[1750640855453,0.70724488,100850.0,100840.0,0.01768459]
[1750640855882,0.341,100850.0,100840.0,0.01768459]
[1750640856103,0.341,100850.0,100840.0,0.01884459]
[1750640856572,0.37112879,100850.0,100840.0,0.01884459]
[1750640856782,0.341,100850.0,100840.0,0.01884459]
[1750640857637,0.341,100850.0,100840.0,0.01882035]
[1750640858941,0.341,100850.0,100840.0,0.01766035]
[1750640859391,0.341,100850.0,100840.0,0.01266035]
[1750640859848,0.341,100850.0,100840.0,0.00346408]
[1750640861560,0.341,100850.0,100840.0,0.00462408]
[1750640861826,0.341,100850.0,100840.0,0.07110291]
[1750640862054,0.341,100850.0,100840.0,0.14454369]
[1750640862716,0.001,100850.0,100840.0,0.15660571]
[1750640863391,0.001,100850.0,100840.0,0.08316493]
[1750640863626,0.001,100850.0,100840.0,0.44816981]
[1750640864715,0.001,100850.0,100840.0,1.29094939]
[1750640865159,0.001,100850.0,100840.0,0.92594451]
[1750640865380,0.59811357,100900.0,100860.0,0.01454085]
[1750640865625,0.34,100890.0,100870.0,0.06820801]
[1750640865841,0.03078869,100900.0,100880.0,0.00113]
[1750640866050,0.03196869,100900.0,100870.0,0.06620801]
[1750640866280,0.37196869,100900.0,100870.0,0.06620801]
[1750640866499,0.37196869,100900.0,100870.0,0.13832673]
[1750640867162,0.40249633,100900.0,100870.0,0.13832673]
[1750640867363,0.37152764,100900.0,100880.0,0.01454085]
[1750640867588,0.03270764,100900.0,100880.0,0.01454085]
[1750640868684,0.03870764,100900.0,100880.0,0.01454085]
[1750640869129,0.36618488,100890.0,100870.0,0.0322]
[1750640869342,0.00118,100890.0,100880.0,0.001]
[1750640869617,0.43622764,100900.0,100880.0,0.001]
[1750640869830,0.42714719,100900.0,100880.0,0.00347793]
[1750640870042,0.42714719,100900.0,100880.0,0.06617793]
[1750640870043,0.37252764,100900.0,100880.0,0.06617793]
[1750640870265,0.37152764,100900.0,100880.0,0.07426181]
[1750640870471,0.05631031,100900.0,100880.0,0.04634181]
[1750640870693,0.001,100890.0,100880.0,0.06088266]
[1750640871108,0.001,100890.0,100880.0,0.09380266]
[1750640871307,0.001,100890.0,100880.0,0.08563878]
[1750640871741,0.05515342,100900.0,100880.0,0.08063878]
[1750640871963,0.03270764,100900.0,100880.0,0.08063878]
[1750640872175,0.03152764,100900.0,100880.0,0.25003878]
[1750640872385,0.03152764,100900.0,100880.0,0.24656085]
[1750640872611,0.001,100890.0,100880.0,0.25056085]
[1750640872850,0.00118,100890.0,100860.0,0.28076024]
[1750640873079,0.39584887,100900.0,100870.0,0.25141878]
[1750640873317,0.34,100890.0,100880.0,0.001]
[1750640873537,0.34,100890.0,100870.0,0.24894085]
[1750640874189,0.34,100890.0,100870.0,0.61394573]
[1750640874414,0.03186166,100900.0,100880.0,0.03312]
[1750640874637,0.05555558,100900.0,100880.0,0.06649789]
[1750640874844,0.001,100890.0,100880.0,0.08503874]
[1750640875290,0.05425792,100900.0,100880.0,0.08103874]
[1750640875505,0.001,100890.0,100880.0,0.1424711]
[1750640875724,0.001,100890.0,100880.0,0.50747598]
[1750640875955,0.001,100890.0,100880.0,0.50499809]
[1750640876169,0.002,100890.0,100880.0,0.50899809]
[1750640876380,0.002,100890.0,100880.0,0.65929748]
[1750640880837,0.002,100890.0,100880.0,0.68811976]
[1750640881974,0.002,100890.0,100880.0,0.87797748]
[1750640885154,0.002,100890.0,100880.0,0.5129726]
[1750640885370,0.002,100890.0,100880.0,1.17627748]
[1750640886265,0.002,100890.0,100880.0,0.20784]
[1750640886483,0.002,100890.0,100880.0,0.17164]
[1750640886715,0.002,100890.0,100880.0,0.18618085]
[1750640887430,0.002,100890.0,100880.0,0.004]
[1750640887639,0.03318,100890.0,100880.0,0.17164]
[1750640887858,0.03318,100890.0,100880.0,0.18618085]
[1750640888075,0.03318,100890.0,100880.0,0.01854085]
[1750640888284,0.03318,100890.0,100880.0,0.18622085]
[1750640888701,0.03318,100890.0,100880.0,0.20991094]
[1750640889212,0.03318,100890.0,100880.0,0.02769009]
[1750640889432,0.40338,100890.0,100880.0,0.17168]
[1750640889652,0.40338,100890.0,100880.0,0.004]
[1750640890747,0.06338,100890.0,100880.0,0.004]
[1750640890967,0.40338,100890.0,100880.0,0.004]
[1750640893078,0.002,100890.0,100880.0,0.00647793]
[1750640893299,0.002,100890.0,100880.0,0.004]
[1750640893745,0.002,100890.0,100880.0,0.38602345]
[1750640893964,0.002,100890.0,100880.0,0.47443408]
[1750640894184,0.09707661,100910.0,100880.0,0.47443408]
[1750640894185,0.0675,100910.0,100880.0,0.4087292]
[1750640894425,0.0675,100910.0,100890.0,0.17003764]
[1750640894426,0.0930117,100910.0,100890.0,0.17003764]
[1750640894895,0.0619117,100910.0,100890.0,0.17003764]
[1750640895124,0.07645773,100910.0,100890.0,0.16756]
[1750640895341,0.07645773,100910.0,100890.0,0.21660934]
[1750640895564,0.09502674,100910.0,100890.0,0.21660934]
[1750640895828,0.09702674,100910.0,100890.0,0.21660934]
[1750640896039,0.0715,100910.0,100890.0,0.21660934]
[1750640896253,0.4115,100910.0,100890.0,0.21660934]
[1750640897573,0.3784,100910.0,100890.0,0.21660934]
[1750640898229,0.4112,100910.0,100890.0,0.21660934]
[1750640898644,0.0012,100900.0,100890.0,0.18210085]
[1750640899302,0.0337,100900.0,100880.0,0.38973243]
[1750640899530,0.0665,100900.0,100880.0,0.57635243]
[1750640899961,0.0665,100900.0,100890.0,0.00547767]
[1750640900221,0.0337,100900.0,100890.0,0.00547767]
[1750640901502,0.0337,100900.0,100890.0,0.00247767]
[1750640902387,0.0012,100900.0,100890.0,0.00247767]
[1750640902604,0.0012,100900.0,100890.0,0.00547767]
[1750640903954,0.3777,100910.0,100890.0,0.02001852]
[1750640904205,0.3777,100910.0,100890.0,0.06986986]
[1750640904424,0.4082,100910.0,100890.0,0.06986986]
[1750640904643,0.0012,100900.0,100890.0,0.07086986]
[1750640904876,0.0012,100900.0,100890.0,0.06786986]
[1750640906270,0.0012,100900.0,100890.0,0.36616986]
[1750640906497,0.4094,100910.0,100890.0,0.36616986]
[1750640906722,0.3777,100910.0,100890.0,0.40126986]
[1750640906953,0.3765,100910.0,100900.0,0.1672]
[1750640907178,0.3452,100910.0,100900.0,0.21210356]
[1750640907411,0.3757,100910.0,100900.0,0.21210356]
[1750640907648,0.3757,100910.0,100900.0,0.1672]
[1750640908309,0.3767,100910.0,100900.0,0.1672]
[1750640908533,0.3757,100910.0,100900.0,0.1672]
[1750640908971,0.3767,100910.0,100900.0,0.1672]
[1750640909427,0.3462,100910.0,100900.0,0.1672]
[1750640909666,0.3767,100910.0,100900.0,0.1672]
[1750640909892,0.3767,100910.0,100900.0,0.22053699]
[1750640910117,0.3767,100910.0,100900.0,0.1672]
[1750640910777,0.3755,100910.0,100900.0,0.1672]
[1750640910989,0.345,100910.0,100900.0,0.1672]
[1750640911626,0.3462,100910.0,100900.0,0.1672]
[1750640911886,0.3779,100910.0,100900.0,0.1672]
[1750640912103,0.3769,100910.0,100900.0,0.26012894]
[1750640912325,0.3769,100910.0,100900.0,0.26212894]
[1750640912833,0.3452,100910.0,100900.0,0.26212894]
[1750640913250,0.3769,100910.0,100900.0,0.26212894]
[1750640913683,0.3769,100910.0,100900.0,0.09492894]
[1750640913867,0.3769,100910.0,100900.0,0.16888]
[1750640916480,0.3452,100910.0,100900.0,0.16888]
[1750640916909,0.3773,100910.0,100900.0,0.16888]
[1750640920829,0.3773,100910.0,100900.0,0.16856]
[1750640921040,0.3452,100910.0,100900.0,0.16856]
[1750640921225,0.3452,100910.0,100900.0,0.1810001]
[1750640921472,0.3766,100910.0,100900.0,0.1810001]
[1750640921895,0.3766,100910.0,100900.0,0.16856]
[1750640923947,0.3766,100910.0,100900.0,0.002]
[1750640924174,0.3766,100910.0,100900.0,0.16852]
[1750640924383,0.3766,100910.0,100900.0,0.16848]
[1750640925251,0.3766,100910.0,100900.0,0.002]
[1750640925490,0.70007376,100910.0,100900.0,0.002]
[1750640925691,0.73528451,100910.0,100900.0,0.002]
[1750640926843,0.70007376,100910.0,100900.0,0.002]
[1750640927658,0.63617376,100910.0,100890.0,0.001]
[1750640927870,0.36080125,100900.0,100890.0,0.001]
[1750640928073,0.35770376,100900.0,100890.0,0.001]
[1750640928276,0.43093886,100900.0,100890.0,0.001]
[1750640928483,0.71040886,100910.0,100890.0,0.001]
[1750640928690,0.00309749,100900.0,100890.0,0.001]
[1750640929118,0.00309749,100900.0,100890.0,0.003]
[1750640929554,0.00309749,100900.0,100890.0,0.001]
[1750640930399,0.344,100910.0,100890.0,0.001]
[1750640930652,0.34523,100910.0,100890.0,0.001]
[1750640930859,0.34623,100910.0,100890.0,0.001]
[1750640931065,0.00123,100900.0,100890.0,0.001]
[1750640931275,0.00123,100900.0,100890.0,0.003]
[1750640931683,0.00123,100900.0,100890.0,0.001]
[1750640932102,0.43303607,100900.0,100890.0,0.001]
[1750640932271,0.42993886,100900.0,100890.0,0.001]
[1750640932885,0.06453,100900.0,100890.0,0.001]
[1750640933272,0.06762728,100900.0,100890.0,0.003]
[1750640934517,0.06762728,100900.0,100890.0,0.004]
[1750640936132,0.00432728,100900.0,100890.0,0.004]
[1750640936358,0.3744,100910.0,100890.0,0.004]
[1750640936569,0.00123,100900.0,100890.0,0.004]
[1750640937430,0.00123,100900.0,100890.0,0.002]
[1750640937876,0.37663,100910.0,100890.0,0.002]
[1750640938342,0.00123,100900.0,100890.0,0.004]
[1750640938558,0.37293,100900.0,100890.0,0.004]
[1750640938966,0.37293,100900.0,100890.0,0.002]
[1750640940793,0.37293,100900.0,100890.0,0.004]
[1750640942427,0.34123,100900.0,100890.0,0.004]
[1750640946751,0.0354,100910.0,100890.0,0.004]
[1750640946880,0.344,100910.0,100900.0,0.0327]
[1750640947079,0.34523,100910.0,100890.0,0.43542886]
[1750640947315,0.34523,100910.0,100890.0,0.53486437]
[1750640947510,0.34523,100910.0,100890.0,0.53286437]
[1750640947720,0.34523,100910.0,100890.0,0.16745551]
[1750640947916,0.34623,100910.0,100890.0,0.16745551]
[1750640948124,0.34523,100910.0,100890.0,0.53534187]
[1750640948331,0.34523,100910.0,100890.0,0.46208719]
[1750640948538,0.34623,100910.0,100890.0,0.46708719]
[1750640948706,0.345,100910.0,100890.0,0.46586719]
[1750640948907,0.66805106,100900.0,100890.0,0.007]
[1750640949124,0.69668418,100900.0,100890.0,0.007]
[1750640949849,0.69668418,100900.0,100890.0,0.002]
[1750640949998,0.69768418,100900.0,100890.0,0.008]
[1750640951785,0.35768418,100900.0,100890.0,0.008]
[1750640952190,0.19824744,100900.0,100890.0,0.008]
[1750640952401,0.36543025,100900.0,100890.0,0.008]
[1750640954305,0.36661025,100900.0,100890.0,0.008]
[1750640954527,0.87337025,100900.0,100890.0,0.008]
[1750640954756,0.89892548,100900.0,100890.0,0.008]
[1750640955405,0.96222548,100900.0,100890.0,0.008]
[1750640956044,0.96221662,100900.0,100890.0,0.008]
[1750640956258,0.96221662,100900.0,100890.0,0.002]
[1750640956484,0.93691025,100900.0,100890.0,0.002]
[1750640956714,0.93691025,100900.0,100890.0,0.005]
[1750640957402,0.95548508,100900.0,100890.0,0.005]
[1750640958944,0.81829798,100900.0,100890.0,0.005]
[1750640959353,0.98533798,100900.0,100890.0,0.005]
[1750640961836,0.98533706,100900.0,100890.0,0.005]
[1750640963139,0.98533156,100900.0,100890.0,0.005]
[1750640964234,0.98533156,100900.0,100890.0,0.003]
[1750640964757,0.98532335,100900.0,100890.0,0.003]
[1750640966138,0.3883731,100900.0,100890.0,0.004]
[1750640966355,0.369818,100900.0,100890.0,0.0367]
[1750640967042,0.369818,100900.0,100890.0,0.08341954]
[1750640967268,0.34,100900.0,100890.0,0.08460954]
[1750640967733,0.249854,100910.0,100900.0,0.064]
[1750640967734,0.033814,100910.0,100900.0,0.064]
[1750640967974,0.03691121,100910.0,100900.0,0.06519]
[1750640968199,0.37691121,100910.0,100900.0,0.06519]
[1750640968423,0.373814,100910.0,100900.0,0.06519]
[1750640970499,0.373814,100910.0,100900.0,0.064]
[1750640971647,0.00118,100900.0,100890.0,0.001]
[1750640971887,0.36970779,100900.0,100890.0,0.001]
[1750640972110,0.36661025,100900.0,100890.0,0.001]
[1750640972853,0.36661025,100900.0,100890.0,0.004]
[1750640974180,0.00118,100900.0,100890.0,0.004]
[1750640974450,0.36970779,100900.0,100890.0,0.004]
[1750640974657,0.36661025,100900.0,100890.0,0.004]
[1750640976857,0.36543025,100900.0,100890.0,0.004]
[1750640977090,0.374994,100910.0,100890.0,0.0655]
[1750640977350,0.00309749,100900.0,100890.0,0.07340541]
[1750640977865,0.004,100910.0,100900.0,0.06559]
[1750640979048,0.005,100910.0,100900.0,0.07059]
[1750640979710,0.00809689,100910.0,100900.0,0.07059]
[1750640981486,0.005,100910.0,100900.0,0.07059]
[1750640981724,0.005,100910.0,100900.0,0.07866829]
[1750640982620,0.005,100910.0,100900.0,0.09320914]
[1750640985239,0.005,100910.0,100900.0,0.09568638]
[1750640985926,0.005,100910.0,100900.0,0.25936914]
[1750640986139,0.005,100910.0,100900.0,0.09320914]
[1750640986479,0.005,100910.0,100900.0,0.23671]
[1750640987785,0.005,100910.0,100900.0,0.25125085]
[1750640988753,0.345,100910.0,100900.0,0.25113085]
[1750640990000,0.005,100910.0,100900.0,0.08513085]
[1750640990222,0.005,100910.0,100900.0,0.11594748]
[1750640991286,0.345,100910.0,100900.0,0.11594748]
[1750640991500,0.345,100910.0,100900.0,0.08513085]
[1750640992536,0.345,100910.0,100900.0,0.07055]
[1750640993795,0.39498801,100920.0,100900.0,0.07055]
[1750640994004,0.02972998,100920.0,100910.0,0.03335]
[1750640994213,0.03282673,100920.0,100910.0,0.03335]
[1750640994413,0.00309675,100920.0,100910.0,0.040445]
[1750640995244,0.03285981,100920.0,100910.0,0.040445]
[1750640995448,0.03285981,100920.0,100910.0,0.041445]
[1750640995650,0.03285981,100920.0,100910.0,0.008095]
[1750640995847,0.03285981,100920.0,100910.0,0.001]
[1750640996061,0.03285981,100920.0,100910.0,0.002]
[1750640996930,0.73811784,100920.0,100910.0,0.002]
[1750640997202,0.76652809,100920.0,100910.0,0.002]
[1750640997411,0.79852809,100920.0,100910.0,0.002]
[1750640998585,0.37107006,100920.0,100910.0,0.002]
[1750640998837,0.70525803,100920.0,100910.0,0.002]
[1750640999066,0.34,100920.0,100910.0,0.06685]
[1750640999296,0.34,100920.0,100910.0,0.08144913]
[1750640999966,0.76755803,100920.0,100910.0,0.002]
[1750641000184,0.95308589,100920.0,100910.0,0.002]
[1750641000409,0.58669786,100920.0,100910.0,0.002]
[1750641000623,0.65082036,100920.0,100910.0,0.002]
[1750641000866,0.7992325,100920.0,100910.0,0.002]
[1750641001087,1.14185366,100920.0,100910.0,0.002]
[1750641001532,1.17455366,100920.0,100910.0,0.002]
[1750641001983,0.65195148,100920.0,100910.0,0.002]
[1750641002226,0.6333925,100920.0,100910.0,0.002]
[1750641002448,0.34,100920.0,100910.0,0.002]
[1750641002669,0.34,100920.0,100910.0,0.0335]
[1750641003104,0.7238515,100920.0,100910.0,0.0335]
[1750641003628,0.70528088,100920.0,100910.0,0.0335]
[1750641003872,0.87108088,100920.0,100910.0,0.06595]
[1750641004107,0.5058,100920.0,100910.0,0.07279275]
[1750641004349,0.34,100920.0,100910.0,0.06595]
[1750641007327,0.73961088,100920.0,100910.0,0.002]
[1750641007548,0.7582023,100920.0,100910.0,0.002]
[1750641007984,0.7250023,100920.0,100910.0,0.002]
[1750641011216,0.7238723,100920.0,100910.0,0.002]
[1750641011425,0.7238723,100920.0,100910.0,0.0343]
[1750641011880,0.7238723,100920.0,100910.0,0.074255]
[1750641012103,0.70528088,100920.0,100910.0,0.075405]
[1750641012330,0.05903939,100940.0,100930.0,0.0323]
[1750641012580,0.05091992,100940.0,100930.0,0.0323]
[1750641012790,0.39091992,100940.0,100930.0,0.0654]
[1750641013009,0.04782355,100940.0,100930.0,0.0654]
[1750641013231,0.05091987,100940.0,100930.0,0.0654]
[1750641013440,0.21146136,100940.0,100930.0,0.0654]
[1750641013694,0.21159934,100940.0,100930.0,0.072055]
[1750641013900,0.00313798,100940.0,100930.0,0.073215]
[1750641014769,0.00013798,100940.0,100930.0,0.073215]
[1750641014976,0.00013798,100940.0,100930.0,0.075215]
[1750641015188,0.00013798,100940.0,100930.0,0.073215]
[1750641016702,0.02503816,100940.0,100930.0,0.073215]
[1750641016923,0.02503816,100940.0,100930.0,0.077215]
[1750641017145,0.00013798,100940.0,100930.0,0.077215]
[1750641020639,0.00013798,100940.0,100930.0,0.09175585]
[1750641021758,0.00013798,100940.0,100930.0,0.55733612]
[1750641022453,0.00013798,100940.0,100930.0,0.72237612]
[1750641022716,0.00013798,100940.0,100930.0,0.77237612]
[1750641024282,0.00013798,100940.0,100930.0,0.77337612]
[1750641025842,0.00318798,100950.0,100940.0,0.05]
[1750641026033,0.00318798,100950.0,100940.0,0.70319473]
[1750641026469,0.00318798,100950.0,100940.0,1.20811473]
[1750641027116,0.00318798,100950.0,100940.0,1.21411473]
[1750641027335,0.00318798,100950.0,100940.0,1.99941473]
[1750641027551,0.00318798,100950.0,100940.0,1.71055223]
[1750641027761,5e-05,100960.0,100950.0,0.49508173]
[1750641027987,5e-05,100960.0,100950.0,1.03568051]
[1750641029146,5e-05,100960.0,100950.0,1.38398051]
[1750641029571,5e-05,100960.0,100950.0,1.38798051]
[1750641030435,5e-05,100960.0,100950.0,1.58609839]
[1750641030651,5e-05,100960.0,100950.0,1.86581478]
[1750641031311,5e-05,100960.0,100950.0,1.87571998]
[1750641031547,5e-05,100970.0,100960.0,0.67704391]
[1750641031796,0.00014202,100970.0,100960.0,2.14033478]
[1750641032017,0.00014202,100970.0,100960.0,2.15023949]
[1750641032237,0.00014202,100970.0,100960.0,2.1601441]
[1750641032471,0.00014202,100970.0,100960.0,2.15023949]
[1750641032736,0.00014202,100970.0,100960.0,1.86184391]
[1750641032954,0.00014202,100970.0,100960.0,1.85193949]
[1750641033169,0.00014202,100970.0,100960.0,1.25304051]
[1750641033386,0.00014202,100970.0,100960.0,1.30304051]
[1750641033619,0.00014202,100970.0,100960.0,1.32898447]
[1750641033833,0.00014202,100970.0,100960.0,1.30304051]
[1750641034280,0.00014202,100970.0,100960.0,1.89027916]
[1750641034924,0.00014202,100970.0,100960.0,1.67237139]
[1750641035621,0.00014202,100970.0,100960.0,1.70764678]
[1750641036061,0.00014202,100970.0,100960.0,1.91564984]
[1750641036277,0.00014202,100970.0,100960.0,1.92555455]
[1750641036490,0.00014202,100970.0,100960.0,1.94536348]
[1750641036748,0.00014202,100970.0,100960.0,1.94536358]
[1750641036967,0.00014202,100970.0,100960.0,1.94536289]
[1750641037607,0.00014202,100970.0,100960.0,2.09536289]
[1750641037814,0.00014202,100970.0,100960.0,2.06564964]
[1750641038211,0.00014202,100970.0,100960.0,2.08545877]
[1750641038456,0.00014202,100970.0,100960.0,2.07555425]
[1750641038660,0.00014202,100970.0,100960.0,2.61818012]
[1750641038865,0.00014202,100970.0,100960.0,2.95408944]
[1750641039078,0.00014202,100970.0,100960.0,2.96399396]
[1750641039288,0.00014202,100970.0,100960.0,2.95408944]
[1750641039499,0.00014202,100970.0,100960.0,2.94418483]
[1750641039719,0.00014202,100970.0,100960.0,2.37458187]
[1750641039929,0.00014202,100970.0,100960.0,2.41899924]
[1750641040110,0.00014202,100970.0,100960.0,2.82389818]
[1750641041420,0.00405,100990.0,100980.0,0.40454085]
[1750641041630,0.00405,100990.0,100980.0,1.32442948]
[1750641041897,0.00405,100990.0,100980.0,1.27442948]
[1750641042108,0.00405,100990.0,100980.0,1.32442948]
[1750641042530,0.00405,100990.0,100980.0,1.33047948]
[1750641042742,0.00405,100990.0,100980.0,1.28047948]
[1750641042923,0.00405,100990.0,100980.0,1.33047948]
[1750641043347,0.00405,100990.0,100980.0,1.28047948]
[1750641043549,0.00405,100990.0,100980.0,1.33047948]
[1750641044815,0.00405,100990.0,100980.0,1.36022207]
[1750641045026,5e-05,101000.0,100990.0,0.34425]
[1750641045235,5e-05,101000.0,100990.0,0.97593473]
[1750641046518,5e-05,101000.0,100990.0,0.99863473]
[1750641047400,5e-05,101000.0,100990.0,0.63335385]
[1750641047620,0.03398,101000.0,100990.0,0.455383]
[1750641047862,0.06638,101000.0,100990.0,0.51960361]
[1750641048340,0.06638,101000.0,100990.0,0.53414446]
[1750641049196,0.07560842,101000.0,100990.0,0.53414446]
[1750641050329,0.07560842,101000.0,100990.0,0.36962446]
[1750641050574,0.07560842,101000.0,100990.0,0.53414446]
[1750641050830,0.04320842,101000.0,100990.0,0.53414446]
[1750641051033,0.04320842,101000.0,100990.0,0.23989446]
[1750641051975,0.00927842,101000.0,100990.0,0.70547473]
[1750641052194,0.00927842,101000.0,100990.0,0.76966473]
[1750641053312,0.00929721,101000.0,100990.0,0.76966473]
[1750641053540,0.00929721,101000.0,100990.0,0.40438385]
[1750641054671,0.00931334,101000.0,100990.0,0.40438385]
[1750641056182,0.00931331,101000.0,100990.0,0.40438385]
[1750641056850,0.00931331,101000.0,100990.0,0.69863385]
[1750641058917,0.00932461,101000.0,100990.0,0.69863385]
[1750641059138,0.00932461,101000.0,100990.0,0.66673385]
[1750641059353,0.02787429,101000.0,100990.0,0.66673385]
[1750641059805,0.00932461,101000.0,100990.0,0.66673385]
[1750641060237,0.02787446,101000.0,100990.0,0.68140385]
[1750641060666,0.02787451,101000.0,100990.0,0.68140385]
[1750641061094,0.02787451,101000.0,100990.0,0.68259385]
[1750641061522,0.02789205,101000.0,100990.0,0.68259385]
[1750641062516,0.00933055,101000.0,100990.0,0.71549385]
[1750641063237,5e-05,101000.0,100990.0,1.11357473]
[1750641063482,5e-05,101000.0,100990.0,1.24271605]
[1750641064638,5e-05,101000.0,100990.0,1.58271605]
[1750641065636,5e-05,101000.0,100990.0,1.57771605]
[1750641068435,5e-05,101010.0,101000.0,0.42104085]
[1750641068672,0.00051452,101010.0,101000.0,1.19901051]
[1750641068902,0.00046452,101010.0,101000.0,1.19901051]
[1750641069142,0.00046452,101010.0,101000.0,1.32811051]
[1750641070027,0.00046452,101010.0,101000.0,1.33411051]
[1750641070517,0.00046452,101010.0,101000.0,1.26028667]
[1750641070985,0.00046452,101010.0,101000.0,0.96882963]
[1750641071226,0.00046452,101010.0,101000.0,1.26028667]
[1750641072596,0.00046452,101010.0,101000.0,0.96882963]
[1750641072830,0.00046452,101010.0,101000.0,1.26028667]
[1750641073087,0.00046452,101010.0,101000.0,1.21028667]
[1750641073315,0.06358452,101010.0,101000.0,0.4606]
[1750641073859,0.06358452,101010.0,101000.0,0.47514085]
[1750641074327,0.06358452,101010.0,101000.0,0.002]
[1750641074578,0.35504156,101010.0,101000.0,0.1664]
[1750641075052,0.14822714,101010.0,101000.0,0.002]
[1750641075276,0.29145704,101010.0,101000.0,0.1664]
[1750641075749,0.29145704,101010.0,100990.0,0.1644]
[1750641076193,0.29145704,101010.0,100980.0,0.07028836]
[1750641076194,0.29145704,101000.0,100980.0,0.07028836]
[1750641076440,5e-05,101020.0,100980.0,0.1644]
[1750641076669,0.39650005,101010.0,100980.0,0.1644]
[1750641076893,0.0004,101000.0,100980.0,0.1644]
[1750641077557,0.0004,101000.0,100980.0,0.01454085]
[1750641077842,0.0004,101000.0,100980.0,0.17894085]
[1750641078062,0.0514,101000.0,100980.0,0.20188748]
[1750641078294,0.031,100990.0,100980.0,0.20188748]
[1750641078526,0.031,100990.0,100980.0,0.03748748]
[1750641078764,0.0511,100990.0,100980.0,0.17898085]
[1750641079468,0.03,100980.0,100970.0,0.21132]
[1750641079932,0.03,100980.0,100970.0,0.22586085]
[1750641080585,0.07110347,100980.0,100970.0,0.22586085]
[1750641080826,0.03,100980.0,100970.0,0.22632537]
[1750641081047,0.03,100980.0,100970.0,0.26009904]
[1750641081488,0.03,100980.0,100970.0,0.26509904]
[1750641082864,0.0501,100990.0,100970.0,0.26509904]
[1750641083117,0.0501,101000.0,100970.0,0.69508709]
[1750641083341,0.0501,101000.0,100970.0,0.33036904]
[1750641084229,0.0501,101000.0,100970.0,0.32536904]
[1750641084466,0.0317,100990.0,100970.0,0.32536904]
[1750641084685,0.0317,100990.0,100970.0,0.32736904]
[1750641084899,0.0317,100990.0,100970.0,0.32536904]
[1750641085145,0.09195666,101000.0,100970.0,0.32536904]
[1750641085380,0.09155666,101000.0,100970.0,0.32536904]
[1750641085867,0.43195666,101000.0,100970.0,0.32536904]
[1750641086530,0.43195666,101000.0,100970.0,0.62366904]
[1750641086981,0.43195666,101000.0,100980.0,0.0315]
[1750641087239,0.43195666,101000.0,100980.0,0.0938269]
[1750641087458,0.43195666,101000.0,100980.0,0.0623269]
[1750641090598,0.41185666,101000.0,100980.0,0.0932269]
[1750641090819,0.41185666,101000.0,100980.0,0.1261269]
[1750641091051,0.04015666,101000.0,100980.0,0.20891375]
[1750641091486,0.420982,101010.0,100980.0,0.20891375]
[1750641092395,0.420982,101010.0,100980.0,0.50721375]
[1750641092619,0.420582,101010.0,100990.0,0.04774085]
[1750641092840,0.3715,101010.0,100990.0,0.13144631]
[1750641093040,0.3711,101010.0,100990.0,0.13144631]
[1750641093320,0.3711,101010.0,100990.0,0.13261631]
[1750641093995,0.41194614,101010.0,100990.0,0.10014631]
[1750641094232,0.43164614,101010.0,100990.0,0.10014631]
[1750641094458,0.43364614,101010.0,100990.0,0.10014631]
[1750641094703,0.41154614,101010.0,100990.0,0.10014631]
[1750641094927,0.38044614,101010.0,100990.0,0.13161631]
[1750641095143,0.38244614,101010.0,100990.0,0.13161631]
[1750641095363,0.38244614,101010.0,101000.0,0.0332]
[1750641095583,0.04244614,101010.0,101000.0,0.07363163]
[1750641095847,0.04244614,101010.0,101000.0,0.07480163]
[1750641096073,0.04244614,101010.0,101000.0,0.04333163]
[1750641096298,0.04244614,101010.0,100990.0,0.59424631]
[1750641096299,0.07364614,101010.0,100990.0,0.59424631]
[1750641096514,0.36531349,101010.0,100990.0,0.59424631]
[1750641096736,0.36531349,101010.0,100990.0,0.59541631]
[1750641097236,0.07364614,101010.0,100990.0,0.59424631]
[1750641097449,0.07124614,101010.0,100990.0,0.59424631]
[1750641097669,0.36331349,101010.0,100990.0,0.59424631]
[1750641097892,0.36531349,101010.0,100990.0,0.59424631]
[1750641098114,0.36331349,101010.0,100990.0,0.59424631]
[1750641098349,0.36531349,101010.0,100990.0,0.59424631]
[1750641098801,0.36531349,101010.0,100990.0,0.59541631]
[1750641099021,0.36491349,101010.0,100990.0,0.59541631]
[1750641099467,0.002,101010.0,101000.0,0.0316]